Cogmind - Beta 13 @@@ ROGUE MODE // 2024.03.16 @ 18:38:14 Player: PlasticHeart Result: Self-destructed Performance ------------- Evolutions (2) 1000 Regions Visited (7) 1400 Robots Destroyed (81) 405 Value Destroyed (1690) 1690 Prototype IDs (11) 220 Alien Tech Used (0) 0 Bonus (182) 182 TOTAL SCORE: 4897 Bonus ------- High Alert Combat Kills 74 Follower Combat Kills 114 Friendly Fire -6 Cogmind --------- Core Integrity 442/550 Matter 225/450 Energy 280/280 System Corruption 0% Temperature Cool (0) Movement Rolling (135) Ox3 Location -8/Materials Parts ------- > --- POWER (1) -------- Cooled Ion Engine > --- PROPULSION (3) --- Wheel Compact Wheel > --- UTILITY (5) ------ Improved Heat Sink Improved Heat Sink Huge Storage Unit Compact Matter Pod Improved Light Armor Plating > --- WEAPON (2) ------- Flak Cannon > --- INVENTORY (25) --- Cooled Ion Engine Cooled Ion Engine Cooled Ion Engine Wheel Wheel Compact Wheel Improved Heat Sink High-capacity Storage Unit Huge Storage Unit Compact Matter Pod (150) Sensor Array Improved Signal Interpreter Hacking Suite EM Pulse Gun Advanced Beam Rifle Advanced Beam Rifle Advanced Beam Rifle Flak Cannon Flak Cannon Proton Bomb Trap Proton Bomb Trap Peak State ------------ > --- POWER ------------ Cooled Ion Engine > --- PROPULSION ------- Wheel Wheel Compact Wheel > --- UTILITY ---------- Improved Heat Sink Improved Heat Sink Huge Storage Unit Compact Matter Pod Improved Light Armor Plating > --- WEAPON ----------- Flak Cannon Rocket Launcher > --- INVENTORY -------- Cooled Ion Engine Cooled Ion Engine Cooled Ion Engine Wheel Wheel Compact Wheel Improved Heat Sink High-capacity Storage Unit Huge Storage Unit Compact Matter Pod Sensor Array Improved Signal Interpreter Hacking Suite EM Pulse Gun Advanced Beam Rifle Advanced Beam Rifle Advanced Beam Rifle Flak Cannon Flak Cannon Flak Cannon Proton Bomb Trap Proton Bomb Trap Proton Bomb Trap [Rating: 29] Favorites ----------- Power Cooled Ion Engine Engine Cooled Ion Engine Propulsion Wheel Treads Light Treads Wheel Wheel Utility Improved Heat Sink Device Improved Heat Sink Storage Huge Storage Unit Protection Hardened Light Armor Plating Weapon Flak Cannon Energy Gun EM Pulse Gun Energy Cannon Advanced Beam Cannon Ballistic Gun Improved Assault Rifle Ballistic Cannon Flak Cannon Launcher Rocket Launcher Build | -11 -10 -10 -9 -9 -9 -8 -8 ------- Run | Yrd Mat Min Mat Min Exi Min Mat Slots Evolved 4 | . . . 2 . . . 2 Power . | . . . . . . . . Propulsion 1 | . . . 1 . . . . Utility 3 | . . . 1 . . . 2 Weapon . | . . . . . . . . Parts Attached 53 | 7 6 4 22 1 . 5 8 Power 3 | 1 . . 2 . . . . Engine 3 | 1 . . 2 . . . . Core . | . . . . . . . . Reactor . | . . . . . . . . Propulsion 13 | 2 1 2 5 1 . . 2 Treads 2 | . . . 2 . . . . Leg . | . . . . . . . . Wheel 11 | 2 1 2 3 1 . . 2 Hover . | . . . . . . . . Flight . | . . . . . . . . Utility 9 | 1 2 . 2 . . 1 3 Device 2 | . 1 . . . . . 1 Storage 4 | 1 1 . 1 . . . 1 Processor . | . . . . . . . . Hackware . | . . . . . . . . Protection 3 | . . . 1 . . 1 1 Artifact . | . . . . . . . . Weapon 28 | 3 3 2 13 . . 4 3 Energy Gun 8 | 1 2 1 4 . . . . Energy Cannon 1 | . . . 1 . . . . Ballistic Gun 7 | 2 1 1 3 . . . . Ballistic Cannon 7 | . . . 3 . . 2 2 Launcher 5 | . . . 2 . . 2 1 Special Weapon . | . . . . . . . . Impact Weapon . | . . . . . . . . Slashing Weapon . | . . . . . . . . Piercing Weapon . | . . . . . . . . Special Melee Weapon . | . . . . . . . . Unidentified Prototypes 4 | . . . 4 . . . . Parts Lost 12 | . 2 3 1 . . 1 5 Power . | . . . . . . . . Propulsion 5 | . 1 2 . . . . 2 Utility 2 | . . . . . . 1 1 Weapon 5 | . 1 1 1 . . . 2 Highest Loss Streak 2 | . 2 2 1 . . 1 2 To Critical Strikes . | . . . . . . . . Average Slot Usage (%) 97 | . 95 94 97 100 100 100 98 Engine 11 | . 14 14 11 11 11 11 9 Treads 2 | . . . 6 . . . . Wheel 27 | . 28 22 24 33 33 33 27 Device 11 | . 9 14 11 11 11 11 18 Storage 12 | . 14 14 11 11 11 11 16 Protection 7 | . . . 10 11 11 11 9 Energy Gun 6 | . 12 24 5 . . . . Ballistic Gun 6 | . 15 3 9 . . . . Ballistic Cannon 9 | . . . 6 22 22 21 16 Naked Turns . | . . . . . . . . Heaviest Build 106 | 13 90 90 106 106 106 106 106 Greatest Support 36 | 32 32 26 36 36 36 36 36 Greatest Overweight (x) 8 | 1 3 8 4 2 2 2 2 Average Overweight (x) 2 | . 2 4 2 2 2 2 2 Largest Inventory Capacity 25 | 8 25 25 25 25 25 25 25 Average Capacity 24 | 6 24 25 25 25 25 25 25 Most Carried 25 | 5 11 13 25 25 25 25 24 Average Carried 17 | 2 6 11 19 24 24 24 22 Final Capacity 25 | 8 25 25 25 25 25 25 25 Final Carried 25 | 2 10 13 25 24 25 24 21 Class Distribution -------------------- 69% | Mutant 30% | Scavenger-Mutant Dominant Class ---------------- Mutant | -10/Materials Mutant | -10/Mines Scavenger-Mutant | -9/Materials Mutant | -9/Mines Mutant | -9/Exiles Mutant | -8/Mines Scavenger-Mutant | -8/Materials Resources | -11 -10 -10 -9 -9 -9 -8 -8 ----------- Run | Yrd Mat Min Mat Min Exi Min Mat Matter Collected 1531 | 286 146 49 510 130 . 138 272 Remotely . | . . . . . . . . Salvage Created 2299 | 97 440 354 977 59 . 17 355 Parts 150 | 1 22 17 71 5 . 6 28 Haulers Intercepted 6 | . 1 . 4 . . . 1 Recyclers Shooed 7 | . 1 1 2 . . 1 2 Parts Field Recycled . | . . . . . . . . Retrieved Matter . | . . . . . . . . Parts Self-Destructed . | . . . . . . . . Prevented . | . . . . . . . . Kills | -11 -10 -10 -9 -9 -9 -8 -8 ------- Run | Yrd Mat Min Mat Min Exi Min Mat Combat Hostiles Destroyed 56 | . 6 7 24 . . 6 13 Guns 24 | . 6 7 11 . . . . Cannons 18 | . . . 8 . . 1 9 AOE 14 | . . . 5 . . 5 4 Classes Destroyed 9 | 1 3 2 3 . . . . Worker 4 | . . 1 2 . . . 1 Tunneler 2 | . . . 1 1 . . . Hauler 6 | . 1 . 4 . . . 1 Recycler 6 | 1 1 1 1 1 . . 1 Operator 1 | . . . 1 . . . . Watcher 6 | . 2 . 4 . . . . Swarmer 27 | . . 3 13 . . 6 5 Grunt 20 | . 6 4 5 . . . 5 Sentry 9 | . . . 6 . . . 3 Best Kill Streak 7 | 1 4 3 7 2 . 3 5 Combat Bots Only 7 | . 4 3 7 . . 3 5 Max Kills in Single Turn 3 | 1 1 2 2 1 . 2 3 Gunslinging 1 | . . 1 . . . . . Exploded 2 | . . . 2 . . 2 2 Melee . | . . . . . . . . Uniques/NPCs Destroyed . | . . . . . . . . Combat | -11 -10 -10 -9 -9 -9 -8 -8 -------- Run | Yrd Mat Min Mat Min Exi Min Mat Hostile Shots Fired 220 | . 35 21 86 . . 15 63 Missed 61 | . 9 4 31 . . 2 15 Damage Taken 1987 | . 362 209 588 . . 188 640 Core 331 | . 99 20 89 . . 15 108 Absorbed by Shields . | . . . . . . . . Core Remaining (%) 75 | 100 . 52 . . . 74 . Volleys Fired 183 | 4 40 26 64 5 . 11 33 Largest 2 | 2 2 2 2 2 . 2 2 Hottest 105 | 40 80 80 105 88 . 88 88 Shots Fired 338 | 8 79 44 121 10 . 16 60 Gun 211 | 8 79 44 80 . . . . Cannon 111 | . . . 36 10 . 10 55 Launcher 16 | . . . 5 . . 6 5 Special . | . . . . . . . . Kinetic 214 | 8 56 4 71 10 . 10 55 Thermal 8 | . . . 8 . . . . Explosive 16 | . . . 5 . . 6 5 Electromagnetic 100 | . 23 40 37 . . . . Robot Hit Streak 17 | 3 9 4 13 5 . 4 17 Robot Miss Streak 10 | 2 3 3 9 10 . 3 8 Penetration Max . | . . . . . . . . Secondary Targets 4 | . 1 1 2 . . . . Max Gunslinging Chain 1 | . 1 1 1 . . . . Shots Hit Robots 230 | 4 48 26 80 8 . 12 52 Core Hits 191 | 2 22 15 67 7 . 14 64 Critical Kills 2 | . 1 . 1 . . . . Critical Parts Destroyed . | . . . . . . . . Critical Strikes 5 | . 3 1 1 . . . . Destroy 2 | . 1 . 1 . . . . Corrupt 3 | . 2 1 . . . . . Melee Attacks . | . . . . . . . . Impact . | . . . . . . . . Slashing . | . . . . . . . . Piercing . | . . . . . . . . Sneak Attacks . | . . . . . . . . Combat Hostiles . | . . . . . . . . Follow-up Attacks . | . . . . . . . . Damage Inflicted 4592 | 38 658 366 1653 119 . 502 1256 Guns 1597 | 38 556 327 676 . . . . Cannons 1787 | . . . 602 119 . 159 907 Explosions 1208 | . 102 39 375 . . 343 349 Melee . | . . . . . . . . Ramming . | . . . . . . . . Kinetic 2412 | 38 312 16 861 119 . 159 907 Thermal 350 | . 102 39 178 . . . 31 Explosive 916 | . . . 297 . . 343 276 Electromagnetic 914 | . 244 311 317 . . . 42 Impact . | . . . . . . . . Slashing . | . . . . . . . . Piercing . | . . . . . . . . Highest Corruption . | . . . . . . . . Average Corruption . | . . . . . . . . Corruption Purged . | . . . . . . . . Corruption Blocked . | . . . . . . . . Overload Shots . | . . . . . . . . Overflow Damage 37 | . 2 14 2 . . 16 3 Projectiles 2 | . . . 2 . . . . Explosions 35 | . 2 14 . . . 16 3 Melee . | . . . . . . . . Knockbacks 60 | . . . 15 5 . 10 30 Impact . | . . . . . . . . Kinetic 52 | . . . 15 5 . 8 24 Secondary 8 | . . . . . . 2 6 Self-Inflicted Damage 40 | . . . . . . 40 . Shots 1 | . . . . . . 1 . Rammed . | . . . . . . . . Targets Rammed . | . . . . . . . . Kicked . | . . . . . . . . Crushed . | . . . . . . . . Highest Temperature 45 | . 38 19 45 . . 4 . Average Temperature 11 | . 10 6 13 . . 4 . Received Heat Transfer 759 | . 204 144 141 . . 27 243 Siege Activations . | . . . . . . . . Robots Corrupted . | . . . . . . . . Combat Hostiles . | . . . . . . . . Parts Fried 4 | . 2 1 1 . . . . Impact Corruptions . | . . . . . . . . Robots Melted . | . . . . . . . . Combat Hostiles . | . . . . . . . . Parts Melted . | . . . . . . . . Heat Transferred 535 | . 150 50 285 . . . 50 Parts Sabotaged . | . . . . . . . . Parts Stolen . | . . . . . . . . Parts Stripped . | . . . . . . . . Power Chain Reactions 8 | . 2 1 2 . . . 3 Alert | -11 -10 -10 -9 -9 -9 -8 -8 ------- Run | Yrd Mat Min Mat Min Exi Min Mat Peak Influence 548 | 5 226 180 548 223 . 277 507 Initial 213 | . 3 28 . 213 . . 107 Average 176 | 1 97 142 223 159 . 137 283 Maximum Alert Level 2 | . 1 . 2 1 . 1 2 Low Security (%) 60 | 100 83 100 50 29 . 92 30 Level 1 32 | . 16 . 37 70 . 7 42 Level 2 6 | . . . 11 . . . 27 Level 3 . | . . . . . . . . Level 4 . | . . . . . . . . Level 5 . | . . . . . . . . High Security . | . . . . . . . . Max Security . | . . . . . . . . Squads Dispatched 7 | . 1 . 2 . . . 4 Investigation 3 | . . . 1 . . . 2 Extermination . | . . . . . . . . Reinforcement 2 | . 1 . 1 . . . . Assault . | . . . . . . . . Garrison 2 | . . . . . . . 2 Intercept . | . . . . . . . . Searches Triggered . | . . . . . . . . Construction Impeded . | . . . . . . . . Haulers Reinforced . | . . . . . . . . Active Scanning Responses . | . . . . . . . . Cargo Convoy Interrupts . | . . . . . . . . Stealth | -11 -10 -10 -9 -9 -9 -8 -8 --------- Run | Yrd Mat Min Mat Min Exi Min Mat Distress Signals 5 | . 1 . 2 . . . 2 Communications Jammed . | . . . . . . . . Distress Signals . | . . . . . . . . Times Spotted 83 | . 12 5 33 . . 10 23 Peak Tracking Total 9 | . 4 2 5 . . 4 9 Tactical Retreats 3 | . 1 . 1 . . 1 . Traps | -11 -10 -10 -9 -9 -9 -8 -8 ------- Run | Yrd Mat Min Mat Min Exi Min Mat Traps Triggered 2 | . . . 1 . . . 1 Indirectly . | . . . . . . . . Trap Hack Attempts . | . . . . . . . . Triggered . | . . . . . . . . Disarmed . | . . . . . . . . Reprogrammed . | . . . . . . . . Reused 1 | . . . . . . . 1 Traps Extracted . | . . . . . . . . Installed 2 | . . . . . . . 2 Triggered 1 | . . . . . . . 1 Most Traps Carried 4 | . . . . 4 4 4 4 Machines | -11 -10 -10 -9 -9 -9 -8 -8 ---------- Run | Yrd Mat Min Mat Min Exi Min Mat Machines Disabled 4 | . . . 1 . . 1 2 Max in Single Turn 2 | . . . 1 . . 1 2 Machines Repaired . | . . . . . . . . Machines Dismantled . | . . . . . . . . Machines Sabotaged . | . . . . . . . . Overloaded Fab Kills . | . . . . . . . . Hacking | -11 -10 -10 -9 -9 -9 -8 -8 --------- Run | Yrd Mat Min Mat Min Exi Min Mat Machines Accessed 19 | . 6 1 6 . 1 . 5 Terminals 15 | . 6 . 6 . . . 3 Fabricators . | . . . . . . . . Repair Stations 1 | . . . . . . . 1 Recycling Units . | . . . . . . . . Scanalyzers . | . . . . . . . . Garrison Access 1 | . . . . . . . 1 Total Hacks 44 | . 12 1 14 . 4 . 13 Successful 29 | . 7 1 10 . 4 . 7 Failed 15 | . 5 . 4 . . . 6 Catastrophic 2 | . 1 . . . . . 1 Database Lockouts . | . . . . . . . . Manual 7 | . 2 . 3 . . . 2 Terminals 34 | . 12 . 14 . . . 8 Fabricators . | . . . . . . . . Repair Stations 2 | . . . . . . . 2 Recycling Units . | . . . . . . . . Scanalyzers . | . . . . . . . . Garrison Access 3 | . . . . . . . 3 Terminal Hacks 23 | . 6 1 8 . 4 . 4 Record 4 | . . . . . 4 . . Prototype ID Bank 7 | . . . 5 . . . 2 Open Door 1 | . . 1 . . . . . Branch Access Points 2 | . 1 . . . . . 1 Locate Traps 3 | . 2 . 1 . . . . Hauler Manifests 4 | . 1 . 2 . . . 1 Zone Layout 2 | . 2 . . . . . . Fabricator Hacks . | . . . . . . . . Repair Station Hacks 1 | . . . . . . . 1 Scan Component 1 | . . . . . . . 1 Recycling Unit Hacks . | . . . . . . . . Scanalyzer . | . . . . . . . . Garrison Access Hacks . | . . . . . . . . Unauthorized Hacks 5 | . 1 . 2 . . . 2 Terminals 5 | . 1 . 2 . . . 2 Botnet 5 | . 1 . 2 . . . 2 Fabricators . | . . . . . . . . Repair Stations . | . . . . . . . . Recycling Units . | . . . . . . . . Scanalyzers . | . . . . . . . . Garrison Access . | . . . . . . . . Data Cores Recovered 1 | . . . 1 . . . . Used . | . . . . . . . . Hacking Detections 12 | . 4 . 5 . . . 3 Full Trace Events 1 | . . . . . . . 1 Feedback Events . | . . . . . . . . Feedback Blocked . | . . . . . . . . Robot Schematics Acquired . | . . . . . . . . Robots Built . | . . . . . . . . Authchips . | . . . . . . . . Time . | . . . . . . . . Total Robot Build Rating . | . . . . . . . . Part Schematics Acquired . | . . . . . . . . Parts Built . | . . . . . . . . Authchips . | . . . . . . . . Time . | . . . . . . . . Total Part Build Rating . | . . . . . . . . Parts Repaired . | . . . . . . . . Time . | . . . . . . . . Parts Recycled . | . . . . . . . . Recycled Matter . | . . . . . . . . Retrieved Matter . | . . . . . . . . Retrieved Components . | . . . . . . . . Parts Scanalyzed . | . . . . . . . . Part Schematics Acquired . | . . . . . . . . Parts Damaged . | . . . . . . . . Bothacking | -11 -10 -10 -9 -9 -9 -8 -8 ------------ Run | Yrd Mat Min Mat Min Exi Min Mat Used RIF Installer . | . . . . . . . . Robots Hacked . | . . . . . . . . Non-combat . | . . . . . . . . Combat . | . . . . . . . . Robot Hacks Applied . | . . . . . . . . Relay Couplers Released . | . . . . . . . . Fabnet Peak Effective % . | . . . . . . . . Robots Rewired . | . . . . . . . . Allies Hacked . | . . . . . . . . Hacks Repelled . | . . . . . . . . Allies | -11 -10 -10 -9 -9 -9 -8 -8 -------- Run | Yrd Mat Min Mat Min Exi Min Mat Total Allies 3 | . . . . 3 . . . Largest Group 3 | . . . . 3 3 3 1 Highest-Rated Group 40 | . . . . 40 40 40 16 Highest-Rated Ally 16 | . . . . 16 16 16 16 Total Orders . | . . . . . . . . Ally Attacks 25 | . . . . . . 24 1 Total Damage 262 | . . . . . . 249 13 Kills 4 | . . . . . . 4 . Allies Corrupted . | . . . . . . . . Allies Melted . | . . . . . . . . Intel | -11 -10 -10 -9 -9 -9 -8 -8 ------- Run | Yrd Mat Min Mat Min Exi Min Mat Robot Analysis Total . | . . . . . . . . Derelict Logs Recovered 3 | . . 2 . 1 . . . Drone Launches . | . . . . . . . . Drone Recoveries . | . . . . . . . . Exploration | -11 -10 -10 -9 -9 -9 -8 -8 ------------- Run | Yrd Mat Min Mat Min Exi Min Mat Turns Passed 3654 | 61 661 414 1168 568 174 233 375 Spaces Moved 2276 | 38 389 217 643 470 150 172 197 Core 11 | 11 . . . . . . . Treads . | . . . . . . . . Legs . | . . . . . . . . Wheels 2265 | 27 389 217 643 470 150 172 197 Hover . | . . . . . . . . Flight . | . . . . . . . . Fastest Speed 50 | 50 100 135 116 116 116 116 116 Average Speed 125 | 88 132 152 129 116 116 116 116 Slowest Speed 200 | 100 135 200 150 116 116 116 116 Overloaded Moves . | . . . . . . . . Propulsion Burnouts . | . . . . . . . . Robots Hopped . | . . . . . . . . Cave-ins Triggered . | . . . . . . . . Exploration Rate (%) 53 | 4 66 54 68 97 49 57 33 Regions Visited 7 Branch Regions 4 Pre-discovered Areas 2 | . . . . 1 1 . . Known Exits Taken 2 | . 1 . 1 . . . . Unknown Exits Taken 5 | 1 . 1 . 1 1 1 . Scrap Searched 4 | . . 1 . 3 . . . Spaces Dug . | . . . . . . . . Terrain Destroyed 129 | . 8 2 41 . . 59 19 Melee . | . . . . . . . . Projectile . | . . . . . . . . AOE 129 | . 8 2 41 . . 59 19 Terrain Rammed . | . . . . . . . . Walls Destroyed . | . . . . . . . . Machines Disabled . | . . . . . . . . Actions | -11 -10 -10 -9 -9 -9 -8 -8 --------- Run | Yrd Mat Min Mat Min Exi Min Mat Total 2733 | 57 461 255 855 485 150 187 283 Wait 131 | . 12 4 81 . . . 34 Move 2269 | 37 388 216 642 469 149 171 197 Hop . | . . . . . . . . Pick Up 61 | 8 12 5 26 4 1 . 5 Fast Attach 10 | 1 2 1 6 . . . . Attach 20 | 5 4 2 3 . . 1 5 Detach . | . . . . . . . . Swap 23 | 1 . 1 13 1 . 4 3 Drop 34 | 1 3 . 20 6 . . 4 Fire 183 | 4 40 26 64 5 . 11 33 Melee . | . . . . . . . . Ram . | . . . . . . . . Kick . | . . . . . . . . Crush . | . . . . . . . . Escape Stasis . | . . . . . . . . Rewire . | . . . . . . . . Trap 2 | . . . . . . . 2 Miscellaneous . | . . . . . . . . Route ------- -11/Scrapyard -10/Materials (discovered 3 exits: *Mat / *Min x2) -10/Mines -9/Materials (discovered 4 exits: *Mat x3 / *Min) -9/Mines (discovered 4 exits: *Mat x2 / *Exi / [*Zio]) -9/Exiles -8/Mines -8/Materials (discovered 1 exit: Sto) History --------- Turn | Location | Event 8 | -11/Scrapyard | Discovered new exit (range 15) 62 | -11/Scrapyard | Entered Materials 315 | -10/Materials | Build established: Mutant 464 | -10/Materials | Discovered new exit (range 10) 470 | -10/Materials | Identified exit to Mines 723 | -10/Materials | Entered Mines 793 | -10/Mines | Learned location of 1 exit from Materials 868 | -10/Mines | Met a Derelict who couldn't figure out how to use a Trap Extractor 957 | -10/Mines | Discovered new exit (range 5) 1137 | -10/Mines | Entered Materials 1137 | -9/Materials | Evolved 2 slots: Propulsion x1, Utility x1 1138 | -9/Materials | Identified exit to Mines 1446 | -9/Materials | Discovered new exit (range 15) 1662 | -9/Materials | Build established: Scavenger-Mutant 1776 | -9/Materials | Destroyed 7 combat bots 1791 | -9/Materials | Discovered new exit (range 11) 2273 | -9/Materials | Discovered new exit (range 16) 2305 | -9/Materials | Entered Mines 2308 | -9/Mines | Assisted by bots powering up and referring to "LRC-V3" 2312 | -9/Mines | Met a Derelict bent on vengeance 2317 | -9/Mines | A Derelict revealed a hidden shortcut to a safe place 2320 | -9/Mines | Build established: Mutant 2383 | -9/Mines | Discovered new exit (range 5) 2583 | -9/Mines | Received a Rocket Launcher from a helpful Derelict 2713 | -9/Mines | Discovered new exit (range 12) 2720 | -9/Mines | Learned location of Zion (-7) 2807 | -9/Mines | Found a hidden stash of uninstalled traps 2868 | -9/Mines | Deemed a non-threat by the Exiles lab entrance 2868 | -9/Mines | Discovered new exit (range 5) 2873 | -9/Mines | Entered Exiles 2873 | -9/Exiles | Accompanied by 3 allies 2902 | -9/Exiles | Met 8R-AWN 2921 | -9/Exiles | Met EX-HEX 2967 | -9/Exiles | Met EX-DEC 3033 | -9/Exiles | Discovered new exit (range 10) 3047 | -9/Exiles | Entered Mines 3047 | -8/Mines | Accompanied by 3 allies 3262 | -8/Mines | Discovered new exit (range 6) 3280 | -8/Mines | Entered Materials 3280 | -8/Materials | Accompanied by 1 ally 3280 | -8/Materials | Evolved 2 slots: Utility x2 3281 | -8/Materials | Identified exit to Storage 3521 | -8/Materials | Garrison activated, responded to threat 3569 | -8/Materials | Build established: Scavenger-Mutant 3655 | -8/Materials | Self-destructed Last Messages --------------- 1x Enh. Autogun 1x Imp. Assault Rifle (2 escorts) A-02 Transporter 2x Cld. Ion Engine 2x Imp. Medium Laser 2x Adv. Beam Cannon (1 escort) A-02 Transporter 4x Hrd. Light Armor Plating A-02 Transporter 4x Imp. EM Shotgun 2x Imp. VTOL Module (1 escort) A-02 Transporter 3x Adv. Beam Cannon 03644_ G-47 Trooper knocked back. 03652_ Flak Cannon destroyed. 03653_ G-47 Trooper knocked back. 03654_ Wheel destroyed. Map ----- +----------------------------------------------------+ | ????????????? # """ # | | ???????????????############# # ! """ # "" | | ???????????????????????????# # # "" | | ????????????????????????#### #### ######### " " "" | | ????????????????????????# #?###???????# "R" | | ?????????????????????? # #???????????# """ ! | | ?????????????????????? # #???????????######## | | ?????????????????????? # #??????????????????? | | ??????????????????# """ # #????##????????????? | | ??????????????????# """ # ##### ####?????????? | | ??? ???????????# """ # # [! #?????????? | | ??# ???????????# # # [! #?????????? | | ??# ???????????# """ # =# [ #?????????? | | ??+ ??????????# """ =# #?????????? | | ??# ??????????# """ =+ #?????????? | | ??# ??????????# =# #?????????? | | ?## #?????????# = # #?????????? | | ?# ############ # # #?????????? | | ## # "T" #?????????? | | ##########?????????? | | * #??????????????????? | | = #??????????????????? | | %[= = #??????????????????? | | ?""" =%* #######+## # #T####??????????????????? | | ?""" #??# #########???????????????????? | | """ ??# """ # gl@ T #???????????????????? | | = ### "G" # """ #???????????????????? | | ! %* + "^" + """b %#???????????????????? | | ## # """ Yg#???????????????????? | | " ## ]] # g [ #???????????????????? | | Y ## ]! ####/#############??????????? | | " ## # ????????? | | ######## ????????? | | ^ ????????? | | ################+########+#######?????????? | | #####/#?????????????? ???????????????????????? | | ??? ????????????? """ ?????????????????????? | | ??# ?????????????#""""" #????????????????????? | | ??#???????????????#""""" #????????????????????? | | ??????????????????#""""" #????????????????????? | | ????????????????????""" #????????????????????? | | ????????????????????? ! #????????????????????? | | ??????????????????????? #????????????????????? | | ???????????????????????######????????????????????? | | | | | | | | | | | | | +----------------------------------------------------+ Best States ------------- Heat Dissipation 59 Energy Generation 14 Energy Capacity 280 Matter Stores 385 Matter Capacity 450 Sight Range 16 Terrain Scan Density 10 Armor Coverage 150 Evasion (%) 50 Item Schematics ----------------- None Robot Schematics ------------------ None Fabricated ------------ Nothing Alien Tech Used ----------------- None Achievements -------------- None Challenges ------------ None Game ------ Seed CommGuidanceDisintegrator Manual? 0 Play Time 00:36:57 Cumulative 938.9 hours Start 2024.03.16 @ 18:04:02 End 2024.03.16 @ 18:38:14 Sessions 1 Manual Loads 0 Difficulty Rogue Special Mode None Game No. 493 Rogue 493 Adventurer 0 Explorer 0 Win Type - Total 68 Types 38/5/14/6/1/1/3/0/0 Lore% 82 Gallery% 86 Achievement% 76 Wizard Run 0 Options --------- Layout 1 ASCII 0 Keyboard 0 Movement Mouse Keybinds 0 Fullscreen 1 Font 36/Smallcaps Map View 50x40 Zoom Use 0% Tactical HUD 1 Map Filters NONE Filters NONE Steam 0 RUN: e1bd90c6-71b0-48b8-a026-2a881c68aeed